bitfinex/quotes_ETHUSD_20230110
["timestamp","ask_amount","ask_price","bid_price","bid_amount"]
[1673366294579,27.48930611,1334.5,1334.4,0.05245838]
[1673366295639,28.83130611,1334.5,1334.4,0.05245838]
[1673366296272,13.84442611,1334.5,1334.4,0.05245838]
[1673366296491,12.49542611,1334.5,1334.4,0.05245838]
[1673366298732,19.98886611,1334.5,1334.4,0.05245838]
[1673366299043,21.33786611,1334.5,1334.4,0.05245838]
[1673366299660,28.83130611,1334.5,1334.4,0.05245838]
[1673366300265,44.61732512,1334.5,1334.4,0.05245838]
[1673366300479,43.86520611,1334.5,1334.4,0.05245838]
[1673366301952,28.87832611,1334.5,1334.4,0.05245838]
[1673366302354,36.37176611,1334.5,1334.4,0.05245838]
[1673366302897,43.86520611,1334.5,1334.4,0.05245838]
[1673366304067,33.37176611,1334.5,1334.4,0.05245838]
[1673366304805,40.86520611,1334.5,1334.4,0.05245838]
[1673366305457,48.41498576,1334.5,1334.4,0.05245838]
[1673366312131,48.41498576,1334.5,1334.4,0.04945143]
[1673366313808,48.64498576,1334.5,1334.4,0.04945143]
[1673366315983,48.6416088,1334.5,1334.4,0.04945143]
[1673366320014,47.2996088,1334.5,1334.4,0.04945143]
[1673366321114,10.16500782,1334.4,1334.0,0.13023069]
[1673366321360,23.83604,1334.1,1334.0,0.06736964]
[1673366321552,27.69970064,1334.1,1334.0,0.06736964]
[1673366321779,30.69970064,1334.1,1334.0,0.06736964]
[1673366321972,34.66086074,1334.1,1334.0,0.06736964]
[1673366323986,34.89086074,1334.1,1334.0,0.06736964]
[1673366326915,34.66086074,1334.1,1334.0,0.06736964]
[1673366328901,34.89086074,1334.1,1334.0,0.06736964]
[1673366332597,34.89086074,1334.1,1334.0,9.64e-06]
[1673366333252,45.99946074,1334.1,1334.0,9.64e-06]
[1673366338414,45.24734173,1334.1,1334.0,9.64e-06]
[1673366338734,45.99946074,1334.1,1334.0,9.64e-06]
[1673366345027,45.59946074,1334.1,1334.0,9.64e-06]
[1673366345354,22.42239901,1334.1,1334.0,9.64e-06]
[1673366345500,29.16596,1334.1,1334.0,9.64e-06]
[1673366345968,14.1746,1334.1,1334.0,9.64e-06]
[1673366346189,40.45930064,1334.1,1334.0,9.64e-06]
[1673366347952,32.96362064,1334.1,1334.0,9.64e-06]
[1673366348160,21.67028,1334.1,1334.0,9.64e-06]
[1673366348375,14.1746,1334.1,1334.0,9.64e-06]
[1673366348626,3.066,1334.1,1334.0,9.64e-06]
[1673366348794,22.55231,1334.2,1334.0,9.64e-06]
[1673366352692,23.30442901,1334.2,1334.0,9.64e-06]
[1673366354473,22.55231,1334.2,1334.0,9.64e-06]
[1673366356937,7.56147,1334.2,1334.0,9.64e-06]
[1673366358250,22.5527,1334.2,1334.0,9.64e-06]
[1673366362250,28.240442,1334.2,1334.0,9.64e-06]
[1673366365339,22.5527,1334.2,1334.0,9.64e-06]
[1673366366024,0.066,1334.2,1334.0,9.64e-06]
[1673366366237,3.0,1334.2,1334.0,14.99239964]
[1673366366449,3.0,1334.2,1334.0,15.05526069]
[1673366367078,3.0,1334.2,1334.0,0.06287069]
[1673366367309,3.0,1334.2,1334.0,2.26197767]
[1673366367760,3.0,1334.2,1334.0,9.64e-06]
[1673366369233,0.00303022,1334.0,1333.9,17.62313069]
[1673366369405,0.00303022,1334.0,1333.9,26.98014605]
[1673366369815,0.00303022,1334.0,1333.9,29.77041924]
[1673366370491,0.00303022,1334.0,1333.9,34.78510104]
[1673366371283,0.00303022,1334.0,1333.9,36.13410104]
[1673366371853,0.00303022,1334.0,1333.9,19.79179104]
[1673366374021,0.00303022,1334.0,1333.9,19.79176469]
[1673366375762,0.00303022,1334.0,1333.9,27.28857469]
[1673366376891,0.00503022,1334.0,1333.9,24.49632785]
[1673366377106,0.00303022,1334.0,1333.9,24.49832785]
[1673366378414,0.00303022,1334.0,1333.9,27.28857691]
[1673366378991,0.00303022,1334.0,1333.9,24.49832785]
[1673366379210,0.00303022,1334.0,1333.9,27.28859311]
[1673366379847,0.00303022,1334.0,1333.9,24.49832785]
[1673366380063,0.00303022,1334.0,1333.9,17.00151785]
[1673366381719,0.00303022,1334.0,1333.9,19.79178628]
[1673366382725,0.00303022,1334.0,1333.9,17.00151785]
[1673366383345,0.00303022,1334.0,1333.9,19.79179587]
[1673366384055,0.00303022,1334.0,1333.9,17.00151785]
[1673366384473,0.00303022,1334.0,1333.9,1.99043605]
[1673366384678,1.34403022,1334.0,1333.9,0.06736964]
[1673366385333,0.00303022,1334.0,1333.9,7.56417964]
[1673366385524,0.00303022,1334.0,1333.9,10.12704069]
[1673366386490,0.00303022,1334.0,1333.9,2.63023069]
[1673366386707,0.00303022,1334.0,1333.9,2.56736964]
[1673366388381,0.00303022,1334.0,1333.9,10.06417964]
[1673366388572,0.00303022,1334.0,1333.9,10.12704069]
[1673366388782,0.00303022,1334.0,1333.9,0.13023069]
[1673366388997,0.00303022,1334.0,1333.9,0.06736964]
[1673366390142,0.00303022,1334.0,1333.9,20.13739771]
[1673366390508,0.00303022,1334.0,1333.9,27.69706876]
[1673366390683,0.00303022,1334.0,1333.9,32.34759986]
[1673366392286,0.00303022,1334.0,1333.9,38.78705592]
[1673366392571,0.00303022,1334.0,1333.9,37.66655712]
[1673366392911,0.00303022,1334.0,1333.9,38.78705592]
[1673366393523,0.00303022,1334.0,1333.9,35.38382981]
[1673366394038,0.00303022,1334.0,1333.9,36.50679564]
[1673366394251,0.00303022,1334.0,1333.9,34.81956569]
[1673366394455,0.066,1334.4,1334.0,2.51209066]
[1673366394665,30.52937895,1334.7,1334.3,1.341]
[1673366394666,30.53537895,1334.7,1334.3,1.341]
[1673366394932,0.19537895,1334.7,1334.4,22.48178]
[1673366395083,0.42897895,1334.7,1334.4,22.54464105]
[1673366396381,3.42897895,1334.7,1334.4,22.54464105]
[1673366399115,3.42897895,1334.7,1334.4,26.36056515]
[1673366399288,3.42897895,1334.7,1334.4,26.3637041]
[1673366401734,0.42897895,1334.7,1334.5,2.5]
[1673366401932,0.12937895,1334.7,1334.5,9.99337]
[1673366402123,0.12937895,1334.7,1334.5,10.05937]
[1673366403908,0.12937895,1334.7,1334.5,7.55937]
[1673366404262,0.12937895,1334.7,1334.6,0.755937]
[1673366404438,0.12937895,1334.7,1334.6,2.5]
[1673366404796,0.12937895,1334.7,1334.5,10.05937]
[1673366405650,0.12937895,1334.7,1334.5,7.55937]
[1673366406432,0.12937895,1334.7,1334.5,15.05282]
[1673366406699,0.12937895,1334.7,1334.6,23.983922]
[1673366406850,0.12937895,1334.7,1334.6,16.557042]
[1673366407058,0.12937895,1334.7,1334.6,1.571282]
[1673366407273,0.12937895,1334.7,1334.6,8.998162]
[1673366407571,0.12937895,1334.7,1334.6,1.571282]
[1673366407693,0.12937895,1334.7,1334.6,1.505282]
[1673366408366,0.12937895,1334.7,1334.6,11.498162]
[1673366408533,0.12937895,1334.7,1334.6,11.564162]
[1673366409393,1e-08,1334.7,1334.6,11.564162]
[1673366410003,1e-08,1334.7,1334.6,4.071282]
[1673366410322,1e-08,1334.7,1334.6,1.505282]
[1673366410535,1e-08,1334.7,1334.6,4.005282]
[1673366410782,1e-08,1334.7,1334.6,11.498162]
[1673366410952,1e-08,1334.7,1334.6,11.564162]
[1673366411507,1e-08,1334.7,1334.6,9.064162]
[1673366412319,1e-08,1334.7,1334.6,12.913162]
[1673366412945,1e-08,1334.7,1334.6,10.413162]
[1673366413786,1e-08,1334.7,1334.6,33.21863442]
[1673366413997,1e-08,1334.8,1334.7,7.49431999]
[1673366414249,1e-08,1334.8,1334.7,14.33425619]
[1673366414466,1e-08,1334.8,1334.7,11.83425619]
[1673366414893,1e-08,1334.8,1334.7,14.33425619]
[1673366415521,1e-08,1334.8,1334.7,11.83425619]
[1673366415755,7.49175001,1334.8,1334.7,0.06799999]
[1673366415947,7.49175001,1334.8,1334.7,0.00199999]
[1673366415948,22.54125001,1334.8,1334.7,0.00199999]
[1673366416258,15.04950001,1334.8,1334.7,0.00199999]
[1673366416661,7.55775001,1334.8,1334.7,0.00199999]
[1673366416973,9.93228767,1334.8,1334.7,0.00199999]
[1673366417191,2.44053767,1334.8,1334.5,10.33382999]
[1673366417407,2.37453767,1334.8,1334.5,12.83382999]
[1673366417939,2.37453767,1334.8,1334.6,2.5]
[1673366418125,1e-08,1334.8,1334.6,2.5]
[1673366419198,1e-08,1334.8,1334.5,25.0459]
[1673366419357,1e-08,1334.8,1334.5,22.5459]
[1673366420305,1e-08,1334.8,1334.5,15.05246]
[1673366420861,7.49191001,1334.8,1334.5,0.066]
[1673366421069,4.54685164,1334.7,1334.4,0.066]
[1673366421260,7.49288,1334.6,1334.1,26.86037]
[1673366421473,8.31099901,1334.6,1334.1,34.35571]
[1673366421822,12.58970608,1334.6,1334.1,41.987667]
[1673366422033,12.59387711,1334.6,1334.1,41.987667]
[1673366422406,12.1617581,1334.6,1334.2,2.5]
[1673366422651,12.1617581,1334.6,1334.2,9.99491]
[1673366422882,4.6688781,1334.6,1334.2,10.06091]
[1673366423058,4.6028781,1334.6,1334.2,17.55603]
[1673366423460,4.6028781,1334.6,1334.2,25.05115]
[1673366423938,4.6028781,1334.6,1334.2,22.6980207]
[1673366424241,27.0817781,1334.6,1334.2,0.066]
[1673366424455,27.1477781,1334.6,1334.1,26.86049]
[1673366424626,27.1477781,1334.6,1334.1,38.15151064]
[1673366424981,27.1477781,1334.6,1334.2,2.5]
[1673366425300,27.1477781,1334.6,1334.1,40.50244]
[1673366425460,1.4619189,1334.5,1334.2,7.49501]
[1673366425670,1.4619189,1334.5,1334.2,7.56101]
[1673366426139,1.4619189,1334.5,1334.2,10.06101]
[1673366426295,1.4619189,1334.5,1334.2,7.56101]
[1673366426501,1.4619189,1334.5,1334.2,10.06101]
[1673366426957,0.39017103,1334.6,1334.2,17.55613]
[1673366427165,3.32417103,1334.6,1334.2,25.05125]
[1673366427570,3.32417103,1334.6,1334.2,7.56101]
[1673366427812,25.80304103,1334.6,1334.2,0.066]
[1673366428036,2.5803041,1334.5,1334.1,40.50272]
[1673366428414,3.39017103,1334.6,1334.2,2.5]
[1673366428728,10.81718103,1334.6,1334.2,9.99492]
[1673366428934,18.37619103,1334.6,1334.2,10.06092]
[1673366429147,18.37619103,1334.6,1334.2,7.56092]
[1673366429405,25.86920103,1334.6,1334.2,0.066]
[1673366429569,25.86920103,1334.6,1334.1,33.00677]
[1673366429918,31.48044213,1334.6,1334.1,43.993957]
[1673366430446,31.48044213,1334.6,1334.1,29.51216368]
[1673366430613,16.49442213,1334.6,1334.1,40.50276]
[1673366430970,23.98730213,1334.6,1334.1,40.50276]
[1673366432019,31.48018213,1334.6,1334.1,33.00708]
[1673366432200,0.87857587,1334.5,1334.1,33.00708]
[1673366432391,8.37217587,1334.5,1334.1,33.00708]
[1673366432607,8.43817587,1334.5,1334.1,33.00708]
[1673366432852,15.93177587,1334.5,1334.1,25.5114]
[1673366433042,15.93177587,1334.5,1334.1,18.0161]
[1673366433396,0.49332603,1334.4,1334.1,18.0161]
[1673366433563,17.07493362,1334.4,1334.1,18.0161]
[1673366433920,9.64655362,1334.4,1334.1,18.0161]
[1673366434231,8.05337603,1334.4,1334.1,18.0161]
[1673366436958,15.54742603,1334.4,1334.1,18.0161]
[1673366437347,0.55932603,1334.4,1334.1,18.0161]
[1673366437542,0.49332603,1334.4,1334.1,25.51174]
[1673366439115,0.49332603,1334.4,1334.1,33.31016432]
[1673366439356,0.49332603,1334.4,1334.2,3.33101643]
[1673366439587,0.49532603,1334.4,1334.2,5.83101643]
[1673366439804,0.49332603,1334.4,1334.2,13.39213643]
[1673366440168,0.49332603,1334.4,1334.2,20.88725643]
[1673366440379,0.49332603,1334.4,1334.3,2.08872564]
[1673366440584,0.49332603,1334.4,1334.3,4.58872564]
[1673366440854,0.49332603,1334.4,1334.3,2.08872564]
[1673366441539,0.49332603,1334.4,1334.3,4.58540969]
[1673366441997,0.49332603,1334.4,1334.3,2.5]
[1673366442187,0.49332603,1334.4,1334.2,5.89701643]
[1673366442379,7.98739603,1334.4,1334.2,5.89701643]
[1673366442605,8.05339603,1334.4,1334.2,3.39701643]
[1673366442813,8.05339603,1334.4,1334.2,3.33101643]
[1673366443233,0.55932603,1334.4,1334.2,3.33101643]
[1673366443461,0.49332603,1334.4,1334.2,3.33101643]
[1673366444211,0.49532603,1334.4,1334.2,3.33101643]
[1673366444387,0.49332603,1334.4,1334.2,5.83101643]
[1673366444580,0.49332603,1334.4,1334.2,5.89701643]
[1673366444791,0.49332603,1334.4,1334.3,0.58970164]
[1673366445131,0.49332603,1334.4,1334.2,5.89701643]
[1673366445669,0.49332603,1334.4,1334.2,3.39701643]
[1673366445903,0.49332603,1334.4,1334.2,3.33101643]
[1673366446103,0.49332603,1334.4,1334.2,5.83101643]
[1673366446415,0.49332603,1334.4,1334.2,5.89701643]
[1673366446594,0.49332603,1334.4,1334.2,3.39701643]
[1673366446804,0.49332603,1334.4,1334.2,3.33101643]
[1673366447555,0.49332603,1334.4,1334.2,5.83101643]
[1673366447778,0.49332603,1334.4,1334.2,5.89701643]
[1673366449889,7.98761603,1334.4,1334.2,5.89701643]
[1673366450049,0.55932603,1334.4,1334.2,5.89701643]
[1673366450414,0.49332603,1334.4,1334.2,5.89701643]
[1673366452924,7.55945,1334.5,1334.3,0.58970164]
[1673366455308,7.55945,1334.5,1334.3,8.42404617]
[1673366455309,0.066,1334.5,1334.3,8.42404617]
[1673366455523,8.1899,1334.6,1334.3,19.49379164]
[1673366455771,8.1899,1334.6,1334.3,23.47952236]
[1673366455938,8.1899,1334.6,1334.4,2.34795224]
[1673366456395,15.68278,1334.6,1334.3,10.93965606]
[1673366456589,15.68278,1334.6,1334.3,8.15023164]
[1673366457246,8.1899,1334.6,1334.3,8.15023164]
[1673366458600,8.1899,1334.6,1334.4,2.5]
[1673366459158,7.55898,1334.6,1334.3,5.83251983]
[1673366459305,7.55898,1334.6,1334.4,0.58325198]
[1673366459673,15.05196,1334.6,1334.3,2.97709541]
[1673366460192,15.05196,1334.6,1334.3,0.47709541]
[1673366460350,22.54494,1334.6,1334.2,7.30698061]
[1673366460559,22.54494,1334.6,1334.2,0.066]
[1673366460774,22.54494,1334.6,1334.1,29.42137418]
[1673366460775,0.00417103,1334.5,1334.1,29.42137418]
[1673366461031,7.49792103,1334.5,1334.2,1.85985411]
[1673366461252,7.56392103,1334.5,1334.2,2.5]
[1673366461415,7.56392103,1334.5,1334.1,29.42137418]
[1673366461609,7.56392103,1334.5,1334.2,4.35984723]
[1673366461819,7.56392103,1334.5,1334.2,2.5]
[1673366462245,7.56392103,1334.5,1334.1,38.32265052]
[1673366462452,0.46512408,1334.4,1334.2,1.85982892]
[1673366462663,17.75525759,1334.4,1334.1,18.0161]
[1673366462914,17.82125759,1334.4,1334.1,18.0161]
[1673366463231,17.82125759,1334.4,1334.1,25.51169]
[1673366463232,2.83274759,1334.4,1334.1,25.51169]
[1673366463427,0.46512408,1334.4,1334.1,28.30143338]
[1673366463641,7.95924408,1334.4,1334.1,28.30143338]
[1673366463839,8.02524408,1334.4,1334.1,28.30143338]
[1673366464054,8.02524408,1334.4,1334.1,20.80584338]
[1673366466236,12.16024049,1334.4,1334.1,18.0161]
[1673366467278,12.16024049,1334.4,1334.1,25.51178]
[1673366467505,4.66622049,1334.4,1334.1,28.30171938]
[1673366467738,4.60022049,1334.4,1334.1,28.30171938]
[1673366468235,0.46512408,1334.4,1334.1,28.30171938]
[1673366468694,7.95941408,1334.4,1334.1,18.0161]
[1673366468863,8.02541408,1334.4,1334.1,18.0161]
[1673366469915,1.348,1334.3,1334.1,0.066]
[1673366470131,1.4758,1334.2,1334.0,2.78979382]
[1673366470379,23.96116,1334.2,1334.0,2.78979382]
[1673366470695,24.02716,1334.2,1334.0,2.78979382]
[1673366475424,27.82482064,1334.2,1334.0,2.78979382]
[1673366475596,10.34485103,1334.1,1334.0,2.78979382]
[1673366475952,20.2548342,1334.1,1334.0,2.78979382]
[1673366476952,18.9808342,1334.1,1334.0,2.78979382]
[1673366478158,26.4765142,1334.1,1334.0,2.78979382]
[1673366479677,26.4765142,1334.1,1334.0,2.78601729]
[1673366483951,11.4851542,1334.1,1334.0,2.78601729]
[1673366484978,18.9808342,1334.1,1334.0,2.78601729]
[1673366486045,11.4851542,1334.1,1334.0,2.78601729]
[1673366486625,30.27417484,1334.1,1334.0,2.78601729]
[1673366488361,40.26268881,1334.1,1334.0,2.78601729]
[1673366488519,41.01480782,1334.1,1334.0,2.78601729]
[1673366489488,37.03059385,1334.1,1334.0,2.78601729]
[1673366490032,35.68159385,1334.1,1334.0,2.78601729]
[1673366494026,19.34006282,1334.1,1334.0,2.78601729]
[1673366494223,26.83574282,1334.1,1334.0,2.78601729]
[1673366495353,19.34006282,1334.1,1334.0,2.78601729]
[1673366496818,30.53376218,1334.1,1334.0,2.78601729]
[1673366497047,30.22446218,1334.1,1334.0,2.78601729]
[1673366499875,31.56646218,1334.1,1334.0,2.78601729]
[1673366500507,30.81434317,1334.1,1334.0,2.78601729]
[1673366501579,30.81434317,1334.1,1334.0,2.78205496]
[1673366501794,31.56646218,1334.1,1334.0,2.78205496]
[1673366502616,30.81434317,1334.1,1334.0,2.78205496]
[1673366503034,23.31866317,1334.1,1334.0,2.78205496]
[1673366503396,7.56168,1334.1,1334.0,2.78205496]
[1673366503797,15.05736,1334.1,1334.0,2.78205496]
[1673366504186,22.55304,1334.1,1334.0,2.78205496]
[1673366505040,15.05736,1334.1,1334.0,2.78205496]
[1673366506388,0.066,1334.1,1334.0,2.78205496]
[1673366506727,0.066,1334.2,1334.0,3.07359742]
[1673366506934,0.066,1334.3,1334.1,1.34]
[1673366507129,8.29816408,1334.4,1334.1,5.32535176]
[1673366507130,8.02550408,1334.4,1334.1,5.32535176]
[1673366507342,7.49488,1334.3,1334.1,1.406]
[1673366507544,22.55032,1334.3,1334.2,0.1406]
[1673366507793,22.55032,1334.3,1334.1,0.066]
[1673366513788,26.34798064,1334.3,1334.1,0.066]
[1673366517687,26.66508064,1334.3,1334.1,0.066]
[1673366517912,28.00708064,1334.3,1334.1,0.066]
[1673366518063,6.79766064,1334.2,1334.1,0.066]
[1673366518272,34.3458287,1334.2,1334.1,0.066]
[1673366519685,34.0287287,1334.2,1334.1,0.066]
[1673366520654,35.3777287,1334.2,1334.1,0.066]
[1673366520863,35.6978287,1334.2,1334.1,0.066]
[1673366521272,35.70199973,1334.2,1334.1,0.066]
[1673366522867,39.68546846,1334.2,1334.1,0.066]
[1673366523025,35.70199973,1334.2,1334.1,0.066]
[1673366525233,13.21663973,1334.2,1334.1,0.066]
[1673366525561,35.70199973,1334.2,1334.1,0.066]
[1673366527592,35.70199973,1334.2,1334.1,0.06200816]
[1673366536410,35.38189973,1334.2,1334.1,0.06200816]
[1673366537531,39.36649785,1334.2,1334.1,0.06200816]
[1673366537905,35.38189973,1334.2,1334.1,0.06200816]
[1673366538057,39.72267706,1334.2,1334.1,8.16e-06]
[1673366538261,35.73769973,1334.2,1334.1,8.16e-06]
[1673366538503,40.47404269,1334.2,1334.1,8.16e-06]
[1673366538698,45.12742426,1334.2,1334.1,8.16e-06]
[1673366538946,44.37530525,1334.2,1334.1,8.16e-06]
[1673366539327,40.47404269,1334.2,1334.1,8.16e-06]
[1673366539945,41.82304269,1334.2,1334.1,8.16e-06]
[1673366541365,46.30504269,1334.2,1334.1,8.16e-06]
[1673366541748,50.20630525,1334.2,1334.1,8.16e-06]
[1673366541962,63.48128873,1334.2,1334.1,8.16e-06]
[1673366542173,64.25324048,1334.2,1334.1,8.16e-06]
[1673366542504,65.19993878,1334.2,1334.1,8.16e-06]
[1673366543309,64.47154231,1334.2,1334.1,8.16e-06]
[1673366543528,64.46757376,1334.2,1334.1,8.16e-06]
[1673366543730,73.23701315,1334.2,1334.1,8.16e-06]
[1673366544423,72.4650614,1334.2,1334.1,8.16e-06]
[1673366545042,72.46521664,1334.2,1334.1,8.16e-06]
[1673366546254,71.51851834,1334.2,1334.1,8.16e-06]
[1673366548690,67.63839318,1334.2,1334.1,8.16e-06]
[1673366549405,63.65416923,1334.2,1334.1,8.16e-06]
[1673366549619,55.03928958,1334.2,1334.1,8.16e-06]
[1673366549853,47.03928958,1334.2,1334.1,8.16e-06]
[1673366550065,54.53440958,1334.2,1334.1,8.16e-06]
[1673366550297,42.55728958,1334.2,1334.1,8.16e-06]
[1673366550509,45.61378251,1334.2,1334.1,8.16e-06]
[1673366551971,45.84378251,1334.2,1334.1,8.16e-06]
[1673366553956,46.59590152,1334.2,1334.1,8.16e-06]
[1673366559340,36.10057904,1334.2,1334.1,8.16e-06]
[1673366559562,31.32079939,1334.2,1334.1,8.16e-06]
[1673366560184,22.55136,1334.2,1334.1,8.16e-06]
[1673366560767,25.55136,1334.2,1334.1,8.16e-06]
[1673366561126,25.78136,1334.2,1334.1,8.16e-06]
[1673366562671,33.00828264,1334.2,1334.1,8.16e-06]
[1673366563204,33.76040165,1334.2,1334.1,8.16e-06]
[1673366563390,30.33113965,1334.2,1334.1,8.16e-06]
[1673366568324,22.48875,1334.0,1333.9,2.85745295]
[1673366568534,22.78475,1334.0,1333.9,2.85745295]
[1673366578883,26.58241064,1334.0,1333.9,2.85745295]
[1673366580432,29.58241064,1334.0,1333.9,2.85745295]
[1673366583252,33.36620855,1334.0,1333.9,2.85745295]
[1673366584290,34.11832756,1334.0,1333.9,2.85745295]
[1673366584407,34.46842756,1334.0,1333.9,2.85745295]
[1673366584618,34.46842756,1334.0,1333.8,2.85610307]
[1673366584873,29.51809064,1333.9,1333.8,2.79010307]
[1673366585039,32.40603188,1333.9,1333.8,2.79010307]
[1673366587701,18.28962,1333.9,1333.8,2.79010307]
[1673366587912,25.55643,1333.9,1333.8,2.79010307]
[1673366588293,0.066,1333.9,1333.8,2.79010307]
[1673366588562,0.066,1334.0,1333.9,1.34]
[1673366588713,11.02343,1334.0,1333.9,0.066]
[1673366589076,18.5861,1334.0,1333.9,0.066]
[1673366590621,0.593,1334.0,1333.9,1.88221031]
[1673366590971,8.02325,1334.0,1333.9,1.88221031]
[1673366591183,15.5855,1334.0,1333.9,1.88221031]
[1673366591756,8.08925,1334.0,1333.9,0.60821031]
[1673366592019,23.08175,1334.0,1333.9,0.066]
[1673366596948,15.5855,1334.0,1333.9,0.066]
[1673366597134,0.593,1334.0,1333.9,1.34]
[1673366597489,0.527,1334.0,1333.9,1.75301031]
[1673366598802,8.02325,1334.0,1333.9,1.75301031]
[1673366599012,8.08925,1334.0,1333.9,1.75301031]
[1673366599907,0.593,1334.0,1333.9,1.75301031]
[1673366600066,0.527,1334.0,1333.9,1.75301031]
[1673366600946,0.527,1334.0,1333.9,0.47901031]
[1673366606832,0.527,1334.0,1333.9,0.066]
[1673366607311,8.02325,1334.0,1333.9,0.066]
[1673366607491,8.08925,1334.0,1333.9,0.066]
[1673366607781,8.08925,1334.0,1333.9,0.06393459]
[1673366608226,23.08175,1334.0,1333.9,0.06393459]
[1673366608454,26.13983985,1334.0,1333.9,0.06393459]
[1673366611051,33.9196195,1334.0,1333.9,0.06393459]
[1673366611678,22.62570886,1334.0,1333.7,7.96326964]
[1673366611891,19.33761901,1334.0,1333.7,7.96326964]
[1673366612567,11.84136901,1334.0,1333.7,7.96326964]
[1673366613362,4.34511901,1334.0,1333.7,18.25177862]
[1673366613574,4.27911901,1334.0,1333.7,10.75385862]
[1673366613893,11.77536901,1334.0,1333.7,7.96326964]
[1673366614101,11.08925,1334.0,1333.7,10.75388615]
[1673366614341,11.08925,1334.0,1333.7,7.96326964]
[1673366614555,18.5855,1334.0,1333.7,7.96326964]
[1673366615932,26.08175,1334.0,1333.7,7.96326964]
[1673366617089,18.5855,1334.0,1333.7,7.96326964]
[1673366617598,18.5355,1334.0,1333.7,7.96326964]
[1673366619181,11.03925,1334.0,1333.7,7.96326964]
[1673366619397,11.03925,1334.0,1333.7,11.8780748]
[1673366619557,11.03925,1334.0,1333.7,14.66869131]
[1673366619884,0.543,1334.0,1333.8,3.99368298]
[1673366620093,0.543,1334.0,1333.8,5.11494312]
[1673366620094,0.477,1334.0,1333.8,5.11494312]
[1673366620310,0.477,1334.0,1333.9,0.51149431]
[1673366620539,0.477,1334.0,1333.9,4.87179828]
[1673366620744,0.477,1334.0,1333.9,3.01149431]
[1673366620923,0.477,1334.0,1333.9,4.87165636]
[1673366621300,0.477,1334.0,1333.9,4.87165199]
[1673366621448,0.477,1334.0,1333.9,2.37164367]
[1673366621771,0.477,1334.0,1333.9,2.37164575]
[1673366622658,0.477,1334.0,1333.9,0.51149431]
[1673366622872,0.477,1334.0,1333.9,2.37163806]
[1673366622873,1e-08,1334.0,1333.9,2.37163806]
[1673366623025,7.9932,1334.1,1333.9,2.37163806]
[1673366623026,0.066,1334.1,1333.9,19.32544083]
[1673366623245,15.31707,1334.3,1334.0,12.69013111]
[1673366623246,0.066,1334.3,1334.0,12.69013111]
[1673366623446,30.39112408,1334.4,1334.2,2.5]
[1673366623655,0.53112408,1334.4,1334.2,2.5]
[1673366623911,0.46512408,1334.4,1334.3,7.49456]
[1673366624123,0.46512408,1334.4,1334.3,7.56056]
[1673366624297,0.46512408,1334.4,1334.3,2.570997]
[1673366624508,0.46512408,1334.4,1334.3,17.494117]
[1673366624757,0.46512408,1334.4,1334.3,25.054677]
[1673366624931,0.46512408,1334.4,1334.3,17.560117]
[1673366625488,0.46512408,1334.4,1334.3,25.054677]
[1673366625704,0.46512408,1334.4,1334.3,2.570997]
[1673366625919,0.46512408,1334.4,1334.3,7.49456]
[1673366626075,0.46512408,1334.4,1334.3,8.83456]
[1673366626440,0.41512408,1334.4,1334.3,8.83456]
[1673366626650,0.41512408,1334.4,1334.3,1.34]
[1673366626841,0.41512408,1334.4,1334.3,1.274]
[1673366627052,0.41512408,1334.4,1334.3,3.156941]
[1673366627594,0.41512408,1334.4,1334.3,1.274]
[1673366627809,0.41512408,1334.4,1334.3,8.76856]
[1673366628121,0.41512408,1334.4,1334.3,8.83456]
[1673366628659,0.066,1334.6,1334.3,8.83456]
[1673366628806,45.04161704,1334.7,1334.3,8.83456]
[1673366629017,45.04161704,1334.7,1334.4,0.883456]
[1673366629267,22.67435704,1334.7,1334.4,0.883456]
[1673366630014,30.16709704,1334.7,1334.4,0.883456]
[1673366630209,22.67435704,1334.7,1334.4,0.883456]
[1673366630537,8.00237704,1334.7,1334.4,0.883456]
[1673366630743,15.49493704,1334.7,1334.4,0.883456]
[1673366631286,22.98749704,1334.7,1334.4,0.883456]
[1673366633745,8.00237704,1334.7,1334.4,0.883456]
[1673366634792,0.50991704,1334.7,1334.4,0.883456]
[1673366635004,3.44391704,1334.7,1334.4,0.883456]
[1673366635213,10.88639704,1334.7,1334.4,0.883456]
[1673366635485,10.95239704,1334.7,1334.4,0.883456]
[1673366635633,10.95239704,1334.7,1334.3,33.703]
[1673366635844,18.44487704,1334.7,1334.3,26.20845]
[1673366636108,25.93735704,1334.7,1334.3,18.7139]
[1673366637794,18.44487704,1334.7,1334.3,26.20844]
[1673366638375,18.44487704,1334.7,1334.3,18.7139]
[1673366638376,25.93735704,1334.7,1334.3,18.7139]
[1673366638612,25.93735704,1334.7,1334.4,1.87139]
[1673366639569,3.45991704,1334.7,1334.4,1.87139]
[1673366639782,3.39391704,1334.7,1334.4,9.36534]
[1673366639940,3.39391704,1334.7,1334.4,9.43134]
[1673366640361,22.87101704,1334.7,1334.4,1.93739]
[1673366640618,22.93701704,1334.7,1334.5,0.193739]
[1673366640781,15.44469704,1334.7,1334.4,1.87139]
[1673366640992,22.93715704,1334.7,1334.4,1.87139]
[1673366641459,15.44469704,1334.7,1334.4,1.87139]
[1673366641633,22.93701704,1334.7,1334.4,1.87139]
[1673366641848,15.44455704,1334.7,1334.4,1.87139]
[1673366642310,0.45991704,1334.7,1334.5,7.49344]
[1673366642484,0.39391704,1334.7,1334.5,7.55944]
[1673366642828,0.39391704,1334.7,1334.5,7.55918]
[1673366642992,0.39391704,1334.7,1334.5,10.250972]
[1673366643449,0.39391704,1334.7,1334.5,2.757792]
[1673366643646,0.39391704,1334.7,1334.5,2.691792]
[1673366645195,0.39391704,1334.7,1334.4,1.93739]
[1673366645406,0.39391704,1334.7,1334.4,1.87139]
[1673366645407,7.88631704,1334.7,1334.4,1.87139]
[1673366645669,7.63881704,1334.7,1334.4,1.87139]
[1673366646040,0.14641704,1334.7,1334.4,11.86512]
[1673366646247,0.08041704,1334.7,1334.5,1.186512]
[1673366646459,0.08041704,1334.7,1334.5,8.679862]
[1673366646669,0.08041704,1334.7,1334.5,8.745862]
[1673366648587,0.08041704,1334.7,1334.5,1.252512]
[1673366648803,0.08041704,1334.7,1334.5,1.186512]
[1673366648987,0.08041704,1334.7,1334.6,1.3926512]
[1673366649200,0.08041704,1334.7,1334.6,3.8926512]
[1673366649407,0.08041704,1334.7,1334.6,11.3855312]
[1673366649621,0.08041704,1334.7,1334.6,11.4515312]
[1673366650353,0.08041704,1334.7,1334.6,7.75631184]
[1673366650826,0.08041704,1334.7,1334.6,11.71913226]
[1673366651044,0.08041704,1334.7,1334.6,15.24919184]